Cogmind - Beta 13 @@@ ROGUE MODE // 2024.03.31 @ 20:08:48 Player: raiguard Result: Destroyed by S-10 Pest with Light Assault Rifle Performance ------------- Evolutions (0) 0 Regions Visited (1) 200 Robots Destroyed (3) 15 Value Destroyed (115) 115 Prototype IDs (0) 0 Alien Tech Used (0) 0 Bonus (0) 0 TOTAL SCORE: 330 Bonus ------- None Cogmind --------- Core Integrity 0/250 Matter 209/300 Energy 100/100 System Corruption 0% Temperature Cool (0) Movement Core (100) Ox1 Location -10/Materials Parts ------- > --- POWER (1) -------- (None) > --- PROPULSION (2) --- (None) > --- UTILITY (2) ------ Small Storage Unit Utility Shielding > --- WEAPON (2) ------- (None) > --- INVENTORY (8) ---- Huge Storage Unit Medium Matter Pod (100) Sensor Array Signal Interpreter Signal Interpreter Datajack Peak State ------------ > --- POWER ------------ Ion Engine > --- PROPULSION ------- Aluminum Leg Aluminum Leg > --- UTILITY ---------- Small Storage Unit Utility Shielding > --- WEAPON ----------- Assault Rifle Assault Rifle > --- INVENTORY -------- Light Ion Engine Light Treads Light Treads Wheel Wheel Small Laser [Rating: 7] Favorites ----------- Power Ion Engine Engine Ion Engine Propulsion Aluminum Leg Treads Light Treads Leg Aluminum Leg Utility Small Storage Unit Storage Small Storage Unit Protection Utility Shielding Weapon Assault Rifle Energy Gun Small Laser Ballistic Gun Assault Rifle Special Weapon Mining Laser Build | -11 -10 ------- Run | Yrd Mat Slots Evolved . | . . Power . | . . Propulsion . | . . Utility . | . . Weapon . | . . Parts Attached 14 | 6 8 Power 2 | 1 1 Engine 2 | 1 1 Core . | . . Reactor . | . . Propulsion 4 | 2 2 Treads 2 | . 2 Leg 2 | 2 . Wheel . | . . Hover . | . . Flight . | . . Utility 4 | 1 3 Device . | . . Storage 3 | 1 2 Processor . | . . Hackware . | . . Protection 1 | . 1 Artifact . | . . Weapon 4 | 2 2 Energy Gun 1 | . 1 Energy Cannon . | . . Ballistic Gun 2 | 2 . Ballistic Cannon . | . . Launcher . | . . Special Weapon 1 | . 1 Impact Weapon . | . . Slashing Weapon . | . . Piercing Weapon . | . . Special Melee Weapon . | . . Unidentified Prototypes . | . . Parts Lost 10 | . 10 Power 2 | . 2 Propulsion 4 | . 4 Utility . | . . Weapon 4 | . 4 Highest Loss Streak 3 | . 3 To Critical Strikes . | . . Average Slot Usage (%) 91 | . 91 Engine 14 | . 14 Treads 5 | . 5 Leg 19 | . 19 Storage 14 | . 14 Protection 12 | . 12 Energy Gun 2 | . 2 Ballistic Gun 21 | . 21 Naked Turns . | . . Heaviest Build 15 | 14 15 Greatest Support 40 | 20 40 Greatest Overweight (x) 4 | 1 4 Average Overweight (x) . | . . Largest Inventory Capacity 25 | 8 25 Average Capacity 8 | 7 8 Most Carried 8 | 8 8 Average Carried 6 | 5 6 Final Capacity 8 | 8 8 Final Carried 6 | 6 6 Class Distribution -------------------- 100% | Mutant Dominant Class ---------------- Mutant | -10/Materials Resources | -11 -10 ----------- Run | Yrd Mat Matter Collected 457 | 204 253 Remotely . | . . Salvage Created 155 | . 155 Parts 5 | . 5 Haulers Intercepted . | . . Recyclers Shooed 1 | . 1 Parts Field Recycled . | . . Retrieved Matter . | . . Parts Self-Destructed . | . . Prevented . | . . Kills | -11 -10 ------- Run | Yrd Mat Combat Hostiles Destroyed 3 | . 3 Guns 3 | . 3 Classes Destroyed 1 | . 1 Grunt 3 | . 3 Best Kill Streak 1 | . 1 Combat Bots Only 1 | . 1 Max Kills in Single Turn 1 | . 1 Gunslinging . | . . Exploded . | . . Melee . | . . Uniques/NPCs Destroyed . | . . Combat | -11 -10 -------- Run | Yrd Mat Hostile Shots Fired 168 | . 168 Missed 47 | . 47 Damage Taken 1222 | . 1222 Core 255 | . 255 Absorbed by Shields . | . . Redirected to Shielding 17 | . 17 Core Remaining (%) 100 | 100 . Volleys Fired 36 | . 36 Largest 2 | . 2 Hottest 100 | . 100 Shots Fired 64 | . 64 Gun 63 | . 63 Cannon . | . . Launcher . | . . Special 1 | . 1 Kinetic 42 | . 42 Thermal 22 | . 22 Explosive . | . . Electromagnetic . | . . Robot Hit Streak 5 | . 5 Robot Miss Streak 3 | . 3 Penetration Max . | . . Secondary Targets . | . . Shots Hit Robots 26 | . 26 Core Hits 8 | . 8 Critical Kills . | . . Critical Parts Destroyed . | . . Critical Strikes . | . . Melee Attacks . | . . Impact . | . . Slashing . | . . Piercing . | . . Sneak Attacks . | . . Combat Hostiles . | . . Follow-up Attacks . | . . Damage Inflicted 368 | . 368 Guns 344 | . 344 Cannons . | . . Explosions . | . . Melee . | . . Ramming . | . . Kinetic 256 | . 256 Thermal 112 | . 112 Explosive . | . . Electromagnetic . | . . Impact . | . . Slashing . | . . Piercing . | . . Highest Corruption . | . . Average Corruption . | . . Corruption Purged . | . . Corruption Blocked . | . . Overload Shots . | . . Overflow Damage 4 | . 4 Projectiles 4 | . 4 Explosions . | . . Melee . | . . Knockbacks . | . . Impact . | . . Kinetic . | . . Secondary . | . . Self-Inflicted Damage . | . . Shots . | . . Rammed . | . . Targets Rammed . | . . Kicked . | . . Crushed . | . . Highest Temperature 21 | . 21 Average Temperature 8 | . 8 Received Heat Transfer 408 | . 408 Siege Activations . | . . Robots Corrupted . | . . Combat Hostiles . | . . Parts Fried . | . . Impact Corruptions . | . . Robots Melted . | . . Combat Hostiles . | . . Parts Melted . | . . Heat Transferred 250 | . 250 Parts Sabotaged . | . . Parts Stolen . | . . Parts Stripped . | . . Power Chain Reactions . | . . Alert | -11 -10 ------- Run | Yrd Mat Peak Influence 60 | . 60 Initial . | . . Average 16 | . 24 Maximum Alert Level . | . . Low Security (%) 100 | 100 100 Level 1 . | . . Level 2 . | . . Level 3 . | . . Level 4 . | . . Level 5 . | . . High Security . | . . Max Security . | . . Squads Dispatched 2 | . 2 Investigation . | . . Extermination . | . . Reinforcement 2 | . 2 Assault . | . . Garrison . | . . Intercept . | . . Searches Triggered . | . . Construction Impeded . | . . Haulers Reinforced . | . . Active Scanning Responses . | . . Cargo Convoy Interrupts . | . . Stealth | -11 -10 --------- Run | Yrd Mat Distress Signals 2 | . 2 Communications Jammed . | . . Distress Signals . | . . Times Spotted 13 | . 13 Peak Tracking Total 5 | . 5 Tactical Retreats 4 | . 4 Traps | -11 -10 ------- Run | Yrd Mat Traps Triggered . | . . Indirectly . | . . Trap Hack Attempts . | . . Triggered . | . . Disarmed . | . . Reprogrammed . | . . Reused . | . . Traps Extracted . | . . Installed . | . . Triggered . | . . Machines | -11 -10 ---------- Run | Yrd Mat Machines Disabled . | . . Max in Single Turn . | . . Machines Repaired . | . . Machines Dismantled . | . . Machines Sabotaged . | . . Overloaded Fab Kills . | . . Hacking | -11 -10 --------- Run | Yrd Mat Machines Accessed . | . . Terminals . | . . Fabricators . | . . Repair Stations . | . . Recycling Units . | . . Scanalyzers . | . . Garrison Access . | . . Total Hacks . | . . Successful . | . . Failed . | . . Catastrophic . | . . Database Lockouts . | . . Manual . | . . Terminals . | . . Fabricators . | . . Repair Stations . | . . Recycling Units . | . . Scanalyzers . | . . Garrison Access . | . . Terminal Hacks . | . . Fabricator Hacks . | . . Repair Station Hacks . | . . Recycling Unit Hacks . | . . Scanalyzer . | . . Garrison Access Hacks . | . . Unauthorized Hacks . | . . Terminals . | . . Fabricators . | . . Repair Stations . | . . Recycling Units . | . . Scanalyzers . | . . Garrison Access . | . . Data Cores Recovered . | . . Used . | . . Hacking Detections . | . . Full Trace Events . | . . Feedback Events . | . . Feedback Blocked . | . . Robot Schematics Acquired . | . . Robots Built . | . . Authchips . | . . Time . | . . Total Robot Build Rating . | . . Part Schematics Acquired . | . . Parts Built . | . . Authchips . | . . Time . | . . Total Part Build Rating . | . . Parts Repaired . | . . Time . | . . Parts Recycled . | . . Recycled Matter . | . . Retrieved Matter . | . . Retrieved Components . | . . Parts Scanalyzed . | . . Part Schematics Acquired . | . . Parts Damaged . | . . Bothacking | -11 -10 ------------ Run | Yrd Mat Used RIF Installer . | . . Robots Hacked . | . . Non-combat . | . . Combat . | . . Robot Hacks Applied . | . . Relay Couplers Released . | . . Fabnet Peak Effective % . | . . Robots Rewired . | . . Allies Hacked . | . . Hacks Repelled . | . . Allies | -11 -10 -------- Run | Yrd Mat Total Allies . | . . Largest Group . | . . Highest-Rated Group . | . . Highest-Rated Ally . | . . Total Orders . | . . Ally Attacks . | . . Total Damage . | . . Kills . | . . Allies Corrupted . | . . Allies Melted . | . . Intel | -11 -10 ------- Run | Yrd Mat Robot Analysis Total . | . . Derelict Logs Recovered . | . . Drone Launches . | . . Drone Recoveries . | . . Exploration | -11 -10 ------------- Run | Yrd Mat Turns Passed 883 | 289 594 Spaces Moved 593 | 231 362 Core 32 | 24 8 Treads 54 | . 54 Legs 507 | 207 300 Wheels . | . . Hover . | . . Flight . | . . Fastest Speed 50 | 50 100 Average Speed 124 | 117 129 Slowest Speed 250 | 190 250 Overloaded Moves . | . . Propulsion Burnouts . | . . Robots Hopped . | . . Cave-ins Triggered . | . . Exploration Rate (%) 30 | 13 48 Regions Visited 1 Branch Regions . Pre-discovered Areas . | . . Known Exits Taken . | . . Unknown Exits Taken 1 | 1 . Scrap Searched . | . . Spaces Dug . | . . Terrain Destroyed . | . . Melee . | . . Projectile . | . . AOE . | . . Terrain Rammed . | . . Walls Destroyed . | . . Machines Disabled . | . . Actions | -11 -10 --------- Run | Yrd Mat Total 670 | 248 422 Wait . | . . Move 592 | 230 362 Hop . | . . Pick Up 23 | 12 11 Fast Attach . | . . Attach 12 | 6 6 Detach . | . . Swap 2 | . 2 Drop 5 | . 5 Fire 36 | . 36 Melee . | . . Ram . | . . Kick . | . . Crush . | . . Escape Stasis . | . . Rewire . | . . Trap . | . . Miscellaneous . | . . Route ------- -11/Scrapyard -10/Materials (discovered 2 exits: [*Mat x2]) History --------- Turn | Location | Event 27 | -11/Scrapyard | Discovered new exit (range 15) 290 | -11/Scrapyard | Entered Materials 310 | -10/Materials | Build established: Mutant 607 | -10/Materials | Discovered new exit (range 14) 809 | -10/Materials | Lost 3 parts (1p1n1w) 817 | -10/Materials | Core integrity fell below 50% 833 | -10/Materials | Discovered new exit (range 13) 861 | -10/Materials | Core integrity fell below 20% 884 | -10/Materials | Destroyed by S-10 Pest with Light Assault Rifle Last Messages --------------- R-06 Scavenger collects Heat Sink. R-06 Scavenger collects Particle Gun. Sml. Laser destroyed. Destroyed Ion Engine. G-34 Mercenary destroyed. Acquired 49 matter. K-01 Serf cleans the Terminal. Acquired Mining Laser. Acquired Datajack. K-01 Serf cleans the Terminal. Assault Rifle destroyed. Destroyed Flight Unit. EXIT=FOUND Mining Laser destroyed. Acquired Huge Storage Unit. Dropped Huge Storage Unit. Acquired Huge Storage Unit. K-01 Serf cleans the Terminal. Lgt. Treads destroyed. Lgt. Ion Engine destroyed. Map ----- +----------------------------------------------------+ | ??????????#""" # # ############ #??# | | ??????????#"R + ###+####??????????# #??# | | ??????????#""" # #??????????# #?## | | ??????????# "" # #??#???????# ### | | ??????????# # #? ????????# | | ??????????############### #? ????????# | | ????????????????????????# # ?????????# ##### | | ???????????????########## # ???????####+#####?## | | ???????????????# # ???????# #??# | | ???????????????# """ "" # # #??????# #??# | | ???????????????# """ "" # ###??????# #??# | | ???????????????# """ T" # #????????# #??# | | ? ?????????????# "" # #????????# #??# | | # ????????????# """ "" # ########## #??# | | # ???????????# """ # # # #??# | | ? #?###+###??# """ + + # #??# | | ?? ## ^ !#??# # # = # #?## | | ??? % ##?########## # = = #######+#### | | ???? % # + | | ????? #????######## # ####### | | ??????# ????????????# # ! #?????###### | | ##+##### ###########??# ##########??????????## | | ## # #??# #????????????????????? | | ## # #### #????????????????????? | | ? """ ## + + #????????????????????? | | ? """ ## # ####@ #????????????????????? | | ??""" ## ###########??# #????????????????????? | | ?? ## ##???????????# #????????????????????? | | ###+### ! #???????????# #????????????????????? | | % #???????????# #????????????????????? | | #???????????# #????????????????????? | | #???????????# #????????????????????? | | ###### #???????????# #????????????????????? | | #????#######???????????# k#????????????????????? | | #??????????????????????# #????????????????????? | | #??????????????????????# #????????????????????? | | #??????????????????#####sss#?????#??????????????? | | #??????????????????#"""# #?#? #??????????????? | | ####################"T"# #T# #??????????????? | | #??????????????? | | % #??????????????? | | % !! """"" #??????????????? | | ############# !! ""T"" #??????????????? | | #???????????# ! #??????????????? | | #???????????# #??????????????? | | #???????????#// #??????????????? | | +???????????# #??????????????? | | #???????????# ????????????? | | #???????????# ???????????? | | #???????????####+### ???????????? | +----------------------------------------------------+ Best States ------------- Heat Dissipation 25 Energy Generation 10 Energy Capacity 250 Matter Stores 300 Matter Capacity 300 Sight Range 16 Terrain Scan Density 10 Utility Shielding 33 Evasion (%) 55 Recoil Reduction 2 Item Schematics ----------------- None Robot Schematics ------------------ None Fabricated ------------ Nothing Alien Tech Used ----------------- None Achievements -------------- None Challenges ------------ None Game ------ Seed AutogunThrusterScrap Manual? 0 Play Time 00:17:33 Cumulative 1.2 hours Start 2024.03.31 @ 08:59:35 End 2024.03.31 @ 20:08:48 Sessions 2 Manual Loads 0 Difficulty Rogue Special Mode None Game No. 3 Rogue 3 Adventurer 0 Explorer 0 Win Type - Total 0 Types 0/0/0/0/0/0/0/0/0 Lore% 0 Gallery% 2 Achievement% 1 Wizard Run 0 Options --------- Layout 1 ASCII 0 Keyboard 1 Movement Arrows Keybinds 0 Fullscreen 1 Font 20/SmallcapsGlow Map View 56x47 Zoom Use 0% Tactical HUD 0 Map Filters NONE Filters NONE Steam 1 RUN: 939c1979-94ea-4451-98a4-87ad1535c7f3